bitfinex-derivatives/quotes_BTCF0:USTF0_20251110
["timestamp","ask_amount","ask_price","bid_price","bid_amount"]
[1762803207774,0.33219803,105600.0,105590.0,0.74702069]
[1762803208298,0.37658803,105600.0,105590.0,0.74702069]
[1762803208476,0.37658803,105600.0,105590.0,0.65284849]
[1762803208477,0.47131713,105600.0,105590.0,0.65284849]
[1762803208680,0.37658803,105600.0,105590.0,0.65284849]
[1762803208979,0.47131713,105600.0,105590.0,0.65284849]
[1762803210885,0.57943933,105600.0,105590.0,0.65284849]
[1762803211182,0.56548933,105600.0,105590.0,0.65284849]
[1762803212580,0.57943933,105600.0,105590.0,0.65284849]
[1762803212771,0.57943933,105600.0,105590.0,0.63989849]
[1762803212977,0.48526713,105600.0,105590.0,0.65308849]
[1762803214586,0.57943933,105600.0,105590.0,0.55487442]
[1762803214989,0.57943933,105600.0,105590.0,0.56757442]
[1762803216183,0.57943933,105600.0,105590.0,0.55487442]
[1762803218683,0.57943933,105600.0,105590.0,0.46013642]
[1762803218883,0.57943933,105600.0,105590.0,0.55487442]
[1762803219992,0.67371059,105600.0,105590.0,0.54516049]
[1762803220179,0.67371059,105600.0,105590.0,0.45940375]
[1762803220377,0.67371059,105600.0,105590.0,0.41417375]
[1762803220785,0.67371059,105600.0,105590.0,0.49919782]
[1762803221502,0.67371059,105600.0,105590.0,0.41417375]
[1762803221682,0.67371059,105600.0,105590.0,0.05337375]
[1762803222588,0.67371059,105600.0,105590.0,0.05237375]
[1762803222990,0.67371059,105600.0,105590.0,0.05137375]
[1762803223184,0.67371059,105600.0,105590.0,0.04937375]
[1762803223385,0.67371059,105600.0,105590.0,0.05037375]
[1762803223984,0.67371059,105600.0,105590.0,0.07388642]
[1762803224400,0.67371059,105600.0,105590.0,0.05110642]
[1762803226288,0.67371059,105600.0,105590.0,0.56556442]
[1762803226289,0.33229709,105600.0,105590.0,0.56556442]
[1762803226495,0.33009906,105600.0,105590.0,0.65973662]
[1762803226686,0.1867354,105600.0,105590.0,0.80232442]
[1762803226895,0.1867354,105600.0,105590.0,1.25479622]
[1762803227088,0.1867354,105600.0,105590.0,1.97639622]
[1762803227590,0.1867354,105600.0,105590.0,1.73963622]
[1762803227998,0.1867354,105600.0,105590.0,1.85729662]
[1762803228187,0.1867354,105600.0,105590.0,1.74163049]
[1762803228387,0.1867354,105600.0,105590.0,1.97839049]
[1762803230888,0.1867354,105600.0,105590.0,1.9784126]
[1762803231088,0.1867354,105600.0,105590.0,1.62255873]
[1762803231390,0.1867354,105600.0,105590.0,1.85931873]
[1762803231592,0.1867354,105600.0,105590.0,1.62255873]
[1762803231890,0.1867354,105600.0,105590.0,1.85931873]
[1762803232091,0.1867354,105600.0,105590.0,1.97836604]
[1762803232992,0.1867354,105600.0,105590.0,1.85931873]
[1762803233193,0.1867354,105600.0,105590.0,1.74159546]
[1762803233396,0.1867354,105600.0,105590.0,1.97835546]
[1762803233896,0.18893343,105600.0,105590.0,1.97835546]
[1762803234091,0.18893343,105600.0,105590.0,1.74159546]
[1762803234400,0.18893343,105600.0,105590.0,1.97835546]
[1762803235799,0.18893343,105600.0,105590.0,1.74159546]
[1762803236001,0.18893343,105600.0,105590.0,1.97835546]
[1762803236205,0.18893343,105600.0,105590.0,1.74159546]
[1762803236390,0.34276774,105600.0,105590.0,1.04740115]
[1762803236589,0.43696205,105600.0,105590.0,1.04740115]
[1762803236790,0.43696205,105600.0,105590.0,1.01337754]
[1762803236991,0.34276774,105600.0,105590.0,0.92836442]
[1762803237196,0.34276774,105600.0,105590.0,1.01337754]
[1762803237598,0.34276774,105600.0,105590.0,0.92836442]
[1762803237796,0.43749684,105600.0,105590.0,0.92836442]
[1762803238113,0.21191343,105600.0,105590.0,1.10757185]
[1762803238302,0.18893343,105600.0,105590.0,1.10757185]
[1762803238998,0.1867354,105600.0,105590.0,1.02255873]
[1762803239300,0.18893343,105600.0,105590.0,1.14159546]
[1762803239492,0.18893343,105600.0,105590.0,1.37835546]
[1762803239693,0.18893343,105600.0,105590.0,1.14159546]
[1762803239887,0.18893343,105600.0,105590.0,1.37835546]
[1762803240097,0.18893343,105600.0,105590.0,1.14159546]
[1762803240293,0.18893343,105600.0,105590.0,1.28416115]
[1762803240494,0.18893343,105600.0,105590.0,1.37835546]
[1762803240894,0.00014177,105610.0,105600.0,0.1516191]
[1762803241096,0.13994431,105630.0,105620.0,0.1422112]
[1762803241295,0.18,105630.0,105620.0,1.13792413]
[1762803241602,0.20517803,105630.0,105620.0,1.07777491]
[1762803241804,0.22794803,105630.0,105620.0,1.07777491]
[1762803242099,0.22804924,105630.0,105620.0,1.17196922]
[1762803242799,0.22804924,105630.0,105620.0,1.07777491]
[1762803242994,0.22804924,105630.0,105620.0,0.9835806]
[1762803243402,0.22804924,105630.0,105620.0,1.05777077]
[1762803243704,0.22804924,105630.0,105620.0,1.02563044]
[1762803243894,0.22804924,105630.0,105620.0,1.02763044]
[1762803245207,0.22804924,105630.0,105620.0,1.1453245]
[1762803245414,0.22804924,105630.0,105620.0,1.0604281]
[1762803245808,0.22804924,105630.0,105620.0,1.1453245]
[1762803246304,0.22804924,105630.0,105620.0,1.0604281]
[1762803246700,0.22804924,105630.0,105620.0,1.0840281]
[1762803247908,0.18229924,105630.0,105620.0,1.0840281]
[1762803248109,0.18010121,105630.0,105620.0,1.1689245]
[1762803248709,0.11010121,105630.0,105620.0,1.53386886]
[1762803249012,0.32010121,105630.0,105620.0,1.65290559]
[1762803249309,0.32010121,105630.0,105620.0,1.67650559]
[1762803249804,0.32010121,105630.0,105620.0,1.43982559]
[1762803250208,0.32010121,105630.0,105620.0,1.4359748]
[1762803250209,0.37974121,105630.0,105620.0,1.4359748]
[1762803250410,0.33399121,105630.0,105620.0,1.55366886]
[1762803250709,0.33399121,105630.0,105620.0,1.31698886]
[1762803251007,0.33399121,105630.0,105620.0,1.55366886]
[1762803251402,0.32010121,105630.0,105620.0,1.55366886]
[1762803252202,0.32010121,105630.0,105620.0,1.31698886]
[1762803252403,0.32010121,105630.0,105620.0,1.55366886]
[1762803252604,0.32010121,105630.0,105620.0,1.29338886]
[1762803252803,0.35697121,105630.0,105620.0,1.29338886]
[1762803253004,0.35697121,105630.0,105620.0,1.53006886]
[1762803253213,0.33399121,105630.0,105620.0,1.29338886]
[1762803253803,0.33399121,105630.0,105620.0,1.53006886]
[1762803254803,0.33399121,105630.0,105620.0,1.29338886]
[1762803255004,0.33399121,105630.0,105620.0,1.53006886]
[1762803255409,0.33399121,105630.0,105620.0,1.64910559]
[1762803256012,0.38193924,105630.0,105620.0,1.43602559]
[1762803256213,0.38193924,105630.0,105620.0,1.22365698]
[1762803256413,0.38193924,105630.0,105620.0,1.34135104]
[1762803256899,0.38193924,105630.0,105620.0,1.3071794]
[1762803258414,0.38193924,105630.0,105620.0,1.04739913]
[1762803258718,0.15664154,105630.0,105620.0,1.04739913]
[1762803258931,0.15664154,105630.0,105620.0,1.04740899]
[1762803259812,0.06193924,105630.0,105620.0,1.04740899]
[1762803260211,0.06193924,105630.0,105620.0,1.04540899]
[1762803260409,0.06193924,105630.0,105620.0,1.11532127]
[1762803260614,0.05974121,105630.0,105620.0,1.0802281]
[1762803260917,0.05974121,105630.0,105620.0,1.14813679]
[1762803261316,0.05974121,105630.0,105620.0,1.12453679]
[1762803261517,0.05974121,105630.0,105620.0,1.0566281]
[1762803261715,0.03697121,105630.0,105620.0,1.0566281]
[1762803262215,0.05876121,105630.0,105620.0,1.0566281]
[1762803262813,0.05876121,105630.0,105620.0,1.127214]
[1762803266114,0.05876121,105630.0,105620.0,1.21215486]
[1762803266308,0.06095924,105630.0,105620.0,1.21215486]
[1762803266621,0.06095924,105630.0,105620.0,1.0238749]
[1762803266805,0.24980152,105630.0,105620.0,1.11801488]
[1762803267216,0.15509922,105630.0,105620.0,1.11801488]
[1762803267620,0.15509922,105630.0,105620.0,1.03307402]
[1762803268512,0.06095924,105630.0,105620.0,1.03307402]
[1762803269519,0.06095924,105630.0,105620.0,1.21215486]
[1762803271113,0.06095924,105630.0,105620.0,1.127214]
[1762803272222,0.24980152,105630.0,105620.0,1.11820755]
[1762803272433,0.24980152,105630.0,105620.0,0.92935637]
[1762803272617,0.3439415,105630.0,105620.0,0.4506662]
[1762803272922,0.1525412,105620.0,105610.0,0.20431203]
[1762803273119,0.29847919,105620.0,105610.0,0.06812021]
[1762803273322,0.34301919,105620.0,105610.0,0.06812021]
[1762803273521,0.34301919,105620.0,105600.0,0.39245627]
[1762803273522,0.1525502,105610.0,105600.0,0.39245627]
[1762803273821,0.34302819,105610.0,105600.0,0.3608]
[1762803274027,0.34102819,105610.0,105600.0,0.3608]
[1762803274923,0.27054981,105610.0,105600.0,0.3608]
[1762803275122,0.27054981,105610.0,105600.0,0.3618]
[1762803275423,0.27054981,105610.0,105600.0,0.001]
[1762803275815,0.27054981,105610.0,105600.0,0.002]
[1762803276326,0.27054981,105610.0,105600.0,0.001]
[1762803277021,0.1525592,105600.0,105590.0,0.54784065]
[1762803277220,0.27264871,105600.0,105590.0,0.54857332]
[1762803277824,0.27264871,105600.0,105590.0,0.41090642]
[1762803278324,0.27264871,105600.0,105590.0,0.05010642]
[1762803278524,0.27264871,105600.0,105590.0,0.14484452]
[1762803278923,0.27264871,105600.0,105590.0,0.05010642]
[1762803279228,0.27264871,105600.0,105590.0,0.14484452]
[1762803279419,0.27264871,105600.0,105590.0,0.50564452]
[1762803279619,0.27264871,105600.0,105590.0,0.52667452]
[1762803279814,0.27264871,105600.0,105590.0,0.54857452]
[1762803280019,0.15484713,105600.0,105590.0,0.54857452]
[1762803280220,0.27264871,105600.0,105590.0,0.05010642]
[1762803280416,0.27264871,105600.0,105590.0,0.07113642]
[1762803280620,0.27264871,105600.0,105590.0,0.09303642]
[1762803284029,0.27264871,105600.0,105590.0,0.45383642]
[1762803284429,0.27264871,105600.0,105590.0,0.09303642]
[1762803284630,0.27264871,105600.0,105590.0,0.05010642]
[1762803285623,0.63344871,105600.0,105590.0,0.05010642]
[1762803286537,0.63344871,105600.0,105590.0,0.04937375]
[1762803287330,0.63344871,105600.0,105590.0,0.03876647]
[1762803287833,0.63544871,105600.0,105590.0,0.03876647]
[1762803288935,0.75325029,105600.0,105590.0,0.03876647]
[1762803290833,0.1508781,105590.0,105580.0,0.04375672]
[1762803291033,0.1508871,105580.0,105570.0,0.04841198]
[1762803291231,0.63168671,105580.0,105570.0,0.04841198]
[1762803291630,0.27088671,105580.0,105570.0,0.04841198]
[1762803292131,0.27088671,105580.0,105570.0,0.07151198]
[1762803292529,0.27188671,105580.0,105570.0,0.07151198]
[1762803292936,0.32694732,105580.0,105570.0,0.07151198]
[1762803293234,0.15408513,105580.0,105570.0,0.55053075]
[1762803293430,0.15408513,105580.0,105570.0,0.18973075]
[1762803293629,0.15508513,105580.0,105570.0,0.55053075]
[1762803293929,0.15508513,105580.0,105570.0,0.45577465]
[1762803294135,0.32794732,105580.0,105570.0,0.09497465]
[1762803294731,0.32794732,105580.0,105570.0,0.04914465]
[1762803294931,0.32794732,105580.0,105570.0,0.07065465]
[1762803294932,0.24937686,105580.0,105570.0,0.07065465]
[1762803295527,0.61017686,105580.0,105570.0,0.04841198]
[1762803295834,0.24937686,105580.0,105570.0,0.09278465]
[1762803298430,0.24937686,105580.0,105570.0,0.04914465]
[1762803298736,0.61017686,105580.0,105570.0,0.04914465]
[1762803299839,0.24937686,105580.0,105570.0,0.04914465]
[1762803300036,0.61017686,105580.0,105570.0,0.04914465]
[1762803300932,0.61017686,105580.0,105570.0,0.04841198]
[1762803301539,0.70446859,105580.0,105570.0,0.04841198]
[1762803301735,0.70446859,105580.0,105560.0,0.04390157]
[1762803301736,0.1522761,105570.0,105560.0,0.04390157]
[1762803301938,0.1522851,105560.0,105550.0,0.03617751]
[1762803302142,0.24877486,105560.0,105550.0,0.03691018]
[1762803302336,0.24877486,105560.0,105550.0,0.05842018]
[1762803302542,0.24877486,105560.0,105550.0,0.08055018]
[1762803303744,0.24877486,105560.0,105550.0,0.09271589]
[1762803304045,0.24877486,105560.0,105550.0,0.09371589]
[1762803304745,0.24877486,105560.0,105550.0,0.45451589]
[1762803304942,0.24877486,105560.0,105550.0,0.09371589]
[1762803307568,0.24877486,105560.0,105550.0,0.45451589]
[1762803307743,0.57877486,105560.0,105550.0,0.54928989]
[1762803308145,0.57877486,105560.0,105550.0,0.45451589]
[1762803308342,0.57877486,105560.0,105550.0,0.09371589]
[1762803308857,0.93957486,105560.0,105550.0,0.07158589]
[1762803309041,0.57877486,105560.0,105550.0,0.09371589]
[1762803309845,0.93957486,105560.0,105550.0,0.09371589]
[1762803310148,0.57877486,105560.0,105550.0,0.05007589]
[1762803310751,0.93957486,105560.0,105550.0,0.05007589]
[1762803310951,0.57877486,105560.0,105550.0,0.05007589]
[1762803311348,0.57877486,105560.0,105550.0,0.07158589]
[1762803311743,0.93957486,105560.0,105550.0,0.07158589]
[1762803311940,0.57877486,105560.0,105550.0,0.07158589]
[1762803312148,0.93957486,105560.0,105550.0,0.07158589]
[1762803312452,0.93957486,105560.0,105550.0,0.04934322]
[1762803313357,0.93957486,105560.0,105550.0,0.04834322]
[1762803313557,0.1453541,105550.0,105540.0,0.03777924]
[1762803313764,0.66621249,105550.0,105540.0,0.03777924]
[1762803314364,0.57192076,105550.0,105540.0,0.03777924]
[1762803314563,0.57192076,105550.0,105540.0,0.03877924]
[1762803315463,0.57192076,105550.0,105540.0,0.03977924]
[1762803315652,0.57192076,105550.0,105540.0,0.05205524]
[1762803316657,0.93272076,105550.0,105540.0,0.05205524]
[1762803317057,0.93272076,105550.0,105540.0,0.05105524]
[1762803318262,0.93372076,105550.0,105540.0,0.05005524]
[1762803318766,0.57292076,105550.0,105540.0,0.56294091]
[1762803319159,0.47236903,105550.0,105540.0,0.56294091]
[1762803319365,0.56666076,105550.0,105540.0,0.56294091]
[1762803321455,0.56666076,105550.0,105540.0,0.10735791]
[1762803321661,0.93372076,105550.0,105540.0,0.05078791]
[1762803321857,1.02801249,105550.0,105540.0,0.05005524]
[1762803322167,0.150393,105540.0,105530.0,0.04276821]
[1762803322357,0.150622,105530.0,105520.0,0.08031567]
[1762803322561,0.91791176,105530.0,105520.0,0.08031567]
[1762803322770,0.60791176,105530.0,105520.0,0.08031567]
[1762803322959,0.6866574,105530.0,105520.0,0.08031567]
[1762803323267,0.6866574,105530.0,105520.0,0.09281417]
[1762803323967,0.6866574,105530.0,105520.0,0.09381417]
[1762803324362,0.6876574,105530.0,105520.0,0.09381417]
[1762803324565,0.6876574,105530.0,105520.0,0.03714567]
[1762803324770,0.68777688,105530.0,105520.0,0.03714567]
[1762803324959,0.150631,105520.0,105510.0,0.04448918]
[1762803325167,0.6866664,105520.0,105510.0,0.04448918]
[1762803325561,0.6866664,105520.0,105510.0,0.06772185]
[1762803325760,0.13966903,105520.0,105510.0,0.19815185]
[1762803326168,0.13966903,105520.0,105510.0,0.10334185]
[1762803326366,0.3258664,105520.0,105510.0,0.06772185]
[1762803326968,0.3258664,105520.0,105510.0,0.08939185]
[1762803327674,0.3258664,105520.0,105510.0,0.18420185]
[1762803327865,0.3258664,105520.0,105510.0,0.19815185]
[1762803328669,0.13966903,105520.0,105510.0,0.19815185]
[1762803328865,0.00219803,105520.0,105510.0,0.55895185]
[1762803329176,0.13966903,105520.0,105510.0,0.55895185]
[1762803329366,0.13966903,105520.0,105510.0,0.46414185]
[1762803329566,0.13966903,105520.0,105510.0,0.55895185]
[1762803330572,0.04486803,105520.0,105510.0,0.55895185]
[1762803330975,0.00219803,105520.0,105510.0,0.55895185]
[1762803331275,0.11609838,105530.0,105520.0,0.152921]
[1762803331470,0.13978641,105530.0,105520.0,0.51445367]
[1762803332671,0.14078641,105530.0,105520.0,0.51445367]
[1762803333175,0.14178641,105530.0,105520.0,0.51445367]
[1762803333575,0.02549751,105530.0,105520.0,0.51445367]
[1762803333770,0.09910951,105530.0,105520.0,0.51445367]
[1762803334180,0.14177951,105530.0,105520.0,0.51445367]
[1762803335271,0.00331751,105530.0,105520.0,0.51445367]
[1762803335470,0.09810951,105530.0,105520.0,0.51445367]
[1762803335684,0.09710951,105530.0,105520.0,0.51445367]
[1762803336282,0.02349751,105530.0,105520.0,0.51445367]
[1762803336480,0.00231751,105530.0,105520.0,0.51445367]
[1762803337284,0.09492997,105540.0,105530.0,0.152912]
[1762803337478,0.097128,105540.0,105530.0,0.51444467]
[1762803337782,0.0023398,105540.0,105530.0,0.51444467]
[1762803338376,0.0981964,105540.0,105530.0,0.51444467]
[1762803338773,0.0991964,105540.0,105530.0,0.51444467]
[1762803338973,0.0981964,105540.0,105530.0,0.51544467]
[1762803339380,0.00021537,105540.0,105530.0,0.51544467]
[1762803339682,0.1374411,105560.0,105550.0,0.1528941]
[1762803339980,0.1374411,105560.0,105550.0,0.51442677]
[1762803339981,0.13963913,105560.0,105550.0,0.51442677]
[1762803340178,0.13963913,105560.0,105550.0,0.41965267]
[1762803340580,0.13963913,105560.0,105550.0,0.51442677]
[1762803340780,0.13963913,105560.0,105550.0,0.87522677]
[1762803341382,0.14063913,105560.0,105550.0,0.87522677]
[1762803341782,0.14163913,105560.0,105550.0,0.87522677]
[1762803342080,0.00419803,105560.0,105550.0,0.87522677]
[1762803342277,0.09896313,105560.0,105550.0,0.87522677]
[1762803342581,0.00419803,105560.0,105550.0,0.87522677]
[1762803342879,0.002,105560.0,105550.0,0.87522677]
[1762803343091,0.00419803,105560.0,105550.0,0.87522677]
[1762803343280,0.00319803,105560.0,105550.0,0.87522677]
[1762803343475,0.00319803,105560.0,105550.0,0.87622677]
[1762803343680,0.09796313,105560.0,105550.0,0.87622677]
[1762803344778,0.09696313,105560.0,105550.0,0.87722677]
[1762803344981,0.09696313,105560.0,105550.0,0.97151017]
[1762803345282,0.09696313,105560.0,105550.0,0.87722677]
[1762803350172,0.09696313,105560.0,105550.0,0.97151017]
[1762803351684,0.14048313,105560.0,105550.0,0.97151017]
[1762803352078,0.11894313,105560.0,105550.0,0.97151017]
[1762803352280,0.09696313,105560.0,105550.0,0.97151017]
[1762803352886,0.00219803,105560.0,105550.0,0.97151017]
[1762803353981,0.13841787,105570.0,105560.0,0.1536251]
[1762803354288,0.1406159,105570.0,105560.0,0.51515777]
[1762803354493,0.0458598,105570.0,105560.0,0.51515777]
[1762803354675,0.0023398,105570.0,105560.0,0.51515777]
[1762803354881,0.23685798,105570.0,105560.0,0.51466475]
[1762803355891,0.23685798,105570.0,105560.0,0.60942985]
[1762803356183,0.23685798,105570.0,105560.0,0.51515777]
[1762803357394,0.23685798,105570.0,105560.0,0.60942985]
[1762803358896,0.23685798,105570.0,105560.0,0.49701275]
[1762803360598,0.1534241,105550.0,105540.0,0.41928177]
[1762803360892,0.1534241,105550.0,105540.0,0.02294177]
[1762803360893,0.51642213,105550.0,105540.0,0.02294177]
[1762803361095,0.51642213,105550.0,105540.0,0.00014177]
[1762803364895,0.51642213,105550.0,105540.0,0.00087444]
[1762803365095,0.15562213,105550.0,105540.0,0.05812444]
[1762803365297,0.23673421,105550.0,105540.0,0.41892444]
[1762803366392,0.23673421,105550.0,105540.0,0.51370744]
[1762803368696,0.14246213,105550.0,105540.0,0.60797952]
[1762803368903,0.23673421,105550.0,105540.0,0.60797952]
[1762803369084,0.23673421,105550.0,105540.0,0.41892444]
[1762803371599,0.23673421,105550.0,105540.0,0.51370744]
[1762803371899,0.21397421,105550.0,105540.0,0.51370744]
[1762803372197,0.23673421,105550.0,105540.0,0.51370744]
[1762803373496,0.23673421,105550.0,105540.0,0.41892444]
[1762803377611,0.23673421,105550.0,105540.0,0.51370744]
[1762803377806,0.23673421,105550.0,105540.0,0.41892444]
[1762803378596,0.23673421,105550.0,105540.0,0.51370744]
[1762803379404,0.23673421,105550.0,105540.0,0.41892444]
[1762803381705,0.23673421,105550.0,105540.0,0.51370744]
[1762803382013,0.19124421,105550.0,105540.0,0.60797952]
[1762803382304,0.23379421,105550.0,105540.0,0.51370744]
[1762803384000,0.23379421,105550.0,105540.0,0.41892444]
[1762803384902,0.23379421,105550.0,105540.0,0.51370744]
[1762803385310,0.23379421,105550.0,105540.0,0.60797952]
[1762803386309,0.23379421,105550.0,105540.0,0.51370744]
[1762803386809,0.23379421,105550.0,105540.0,0.59843497]
[1762803387909,0.23379421,105550.0,105540.0,0.69270705]
[1762803388910,0.19124421,105550.0,105540.0,0.69270705]
[1762803389410,0.50124421,105550.0,105540.0,0.69270705]
[1762803390811,0.54379421,105550.0,105540.0,0.50365197]
[1762803391704,0.54379421,105550.0,105540.0,0.59843497]
[1762803393605,0.54379421,105550.0,105540.0,0.50365197]
[1762803393804,0.54379421,105550.0,105540.0,0.59843497]
[1762803395715,0.54379421,105550.0,105540.0,0.69270705]
[1762803396615,0.54379421,105550.0,105540.0,0.50365197]
[1762803396802,0.54379421,105550.0,105540.0,0.59843497]
[1762803401713,0.54379421,105550.0,105540.0,0.69270705]
[1762803402018,0.54379421,105550.0,105540.0,0.50365197]
[1762803403416,1.01202629,105550.0,105540.0,0.12999197]
[1762803403613,0.65122629,105550.0,105540.0,0.14325197]
[1762803403817,0.63806629,105550.0,105540.0,0.50405197]
[1762803404122,0.54379421,105550.0,105540.0,0.50405197]
[1762803404320,0.63806629,105550.0,105540.0,0.50405197]
[1762803404620,0.63806629,105550.0,105540.0,0.59883497]
[1762803405218,0.54379421,105550.0,105540.0,0.59883497]
[1762803408617,0.54379421,105550.0,105540.0,0.50405197]
[1762803408822,0.54379421,105550.0,105540.0,0.59883497]
[1762803411012,0.52263421,105550.0,105540.0,0.69310705]
[1762803411324,0.54456421,105550.0,105540.0,0.69310705]
[1762803413126,0.54456421,105550.0,105540.0,0.59883497]
[1762803413328,0.54456421,105550.0,105540.0,0.69310705]
[1762803414626,0.54456421,105550.0,105540.0,0.59883497]
[1762803415027,0.54461026,105550.0,105540.0,0.59883497]
[1762803420232,0.54461026,105550.0,105540.0,0.50405197]
[1762803421830,0.54461026,105550.0,105540.0,0.41932444]
[1762803422428,0.54461026,105550.0,105540.0,0.51410744]
[1762803424335,0.31219803,105550.0,105540.0,0.60842557]
[1762803424531,0.31219803,105550.0,105540.0,0.7274623]
[1762803425331,0.40697213,105550.0,105540.0,0.7274623]
[1762803425532,0.31219803,105550.0,105540.0,0.7274623]
[1762803426030,0.31219803,105550.0,105540.0,0.81274487]
[1762803426330,0.45154213,105550.0,105540.0,0.69370814]
[1762803426736,0.40697213,105550.0,105540.0,0.69370814]
[1762803427035,0.42882213,105550.0,105540.0,0.59939001]
[1762803427532,0.31219803,105550.0,105540.0,0.59939001]
[1762803427731,0.31219803,105550.0,105540.0,0.69370814]
[1762803428138,0.33404803,105550.0,105540.0,0.69370814]
[1762803428328,0.33404803,105550.0,105540.0,0.59939001]
[1762803428639,0.42882213,105550.0,105540.0,0.51410744]
[1762803428828,0.45154213,105550.0,105540.0,0.51410744]
[1762803429728,0.33404803,105550.0,105540.0,0.63314417]
[1762803430037,0.42882213,105550.0,105540.0,0.63314417]
[1762803430237,0.42882213,105550.0,105540.0,0.51410744]
[1762803430828,0.45154213,105550.0,105540.0,0.51410744]
[1762803432238,0.45154213,105550.0,105540.0,0.59933483]
[1762803433637,0.54586026,105550.0,105540.0,0.59933483]
[1762803434237,0.45154213,105550.0,105540.0,0.59933483]
[1762803434438,0.35676803,105550.0,105540.0,0.59933483]
[1762803434739,0.45154203,105550.0,105540.0,0.59933483]
[1762803435737,0.45154203,105550.0,105540.0,0.51410744]
[1762803436338,0.45154203,105550.0,105540.0,0.59932998]
[1762803436942,0.35676803,105550.0,105540.0,0.59932998]
[1762803437536,0.35676803,105550.0,105540.0,0.69364811]
[1762803437736,0.31219803,105550.0,105540.0,0.60842557]
[1762803438333,0.33404803,105550.0,105540.0,0.60842557]
[1762803438533,0.45154203,105550.0,105540.0,0.60842557]
[1762803441127,0.33404803,105550.0,105540.0,0.60842557]
[1762803441529,0.31219803,105550.0,105540.0,0.7027437]
[1762803441740,0.05944177,105570.0,105560.0,0.1067051]
[1762803442040,0.05944177,105570.0,105560.0,1.0085647]
[1762803442243,0.37014177,105570.0,105560.0,1.0085647]
[1762803442442,0.37014177,105570.0,105560.0,1.10331101]
[1762803442830,0.37314177,105570.0,105560.0,1.10331101]
[1762803443240,0.37314177,105570.0,105560.0,1.01810221]
[1762803443636,0.37014177,105570.0,105560.0,1.01810221]
[1762803443839,0.37014177,105570.0,105560.0,1.25794221]
[1762803444339,0.37014177,105570.0,105560.0,1.45125424]
[1762803444743,0.33419947,105570.0,105560.0,2.05025207]
[1762803445040,0.33419947,105570.0,105560.0,2.16802754]
[1762803445229,0.33419947,105570.0,105560.0,2.07370941]
[1762803445636,0.29919947,105570.0,105560.0,2.07370941]
[1762803445847,0.26419947,105570.0,105560.0,2.16802754]
[1762803447130,0.26419947,105570.0,105560.0,1.93118754]
[1762803447334,0.26419947,105570.0,105560.0,2.16802754]
[1762803448335,0.26419947,105570.0,105560.0,1.93118754]
[1762803448746,0.26419947,105570.0,105560.0,1.92818754]
[1762803449045,0.26419947,105570.0,105560.0,2.17202754]
[1762803449742,0.26419947,105570.0,105560.0,1.93518754]
[1762803449933,0.26419947,105570.0,105560.0,2.07770941]
[1762803449934,0.30024947,105570.0,105560.0,2.07770941]
[1762803450137,0.32349947,105570.0,105560.0,1.9596597]
[1762803451046,0.32349947,105570.0,105560.0,2.1964997]
[1762803451952,0.30024947,105570.0,105560.0,2.1964997]
[1762803452343,0.30024947,105570.0,105560.0,1.9596597]
[1762803452849,0.27739947,105570.0,105560.0,1.9596597]
[1762803453446,0.27739947,105570.0,105560.0,2.1964997]
[1762803453751,0.27739947,105570.0,105560.0,2.29081783]
[1762803453947,0.27739947,105570.0,105560.0,2.1964997]
[1762803454249,0.30024947,105570.0,105560.0,1.9596597]
[1762803454448,0.30024947,105570.0,105560.0,2.1964997]
[1762803455149,0.27739947,105570.0,105560.0,2.1964997]
[1762803455448,0.27739947,105570.0,105560.0,2.17202754]
[1762803457150,0.27739947,105570.0,105560.0,1.93518754]
[1762803457453,0.27739947,105570.0,105560.0,2.17202754]
[1762803457845,0.27739947,105570.0,105560.0,1.93518754]
[1762803458045,0.27739947,105570.0,105560.0,2.17202754]
[1762803458648,0.27739947,105570.0,105560.0,1.93518754]
[1762803458844,0.27739947,105570.0,105560.0,1.84086941]
[1762803459046,0.27739947,105570.0,105560.0,1.93518754]
[1762803459241,0.27739947,105570.0,105560.0,2.17202754]
[1762803460759,0.27739947,105570.0,105560.0,2.19562754]
[1762803461250,0.27739947,105570.0,105560.0,1.95878754]
[1762803461452,0.03619177,105580.0,105570.0,0.0947565]
[1762803461751,0.4216398,105580.0,105570.0,1.30409577]
[1762803462155,0.2316398,105580.0,105570.0,1.16201516]
[1762803462354,0.3616398,105580.0,105570.0,1.16201516]
[1762803462555,0.3616398,105580.0,105570.0,1.16401516]
[1762803462746,0.3616398,105580.0,105570.0,1.16701516]
[1762803462952,0.3616398,105580.0,105570.0,1.40381516]
[1762803463254,0.0616398,105580.0,105570.0,1.16701516]
[1762803463451,0.0616398,105580.0,105570.0,1.40381516]
[1762803463861,0.05944177,105580.0,105570.0,1.5466865]
[1762803464658,0.05944177,105580.0,105570.0,1.3098865]
[1762803464860,0.05944177,105580.0,105570.0,1.5466865]
[1762803465459,0.05944177,105580.0,105570.0,1.63149473]
[1762803467558,0.05944177,105580.0,105570.0,1.39469473]
[1762803467759,0.05944177,105580.0,105570.0,1.63149473]
[1762803467951,0.05944177,105580.0,105570.0,1.20912439]
[1762803468147,0.05944177,105580.0,105570.0,0.97232439]
[1762803468949,0.05944177,105580.0,105570.0,1.20912439]
[1762803470849,0.05944177,105580.0,105570.0,0.97232439]
[1762803471463,0.05944177,105580.0,105570.0,0.88751616]
[1762803471657,0.05944177,105580.0,105570.0,1.00630645]
[1762803472664,0.05944177,105580.0,105570.0,0.88751616]
[1762803474064,0.05944177,105580.0,105570.0,1.00677804]
[1762803474565,0.05944177,105580.0,105570.0,1.12431616]
[1762803475260,0.05944177,105580.0,105570.0,0.88751616]
[1762803475456,0.05944177,105580.0,105570.0,1.12431616]
[1762803476260,0.00014177,105580.0,105570.0,1.24360569]
[1762803476462,0.00014177,105580.0,105570.0,1.41318704]
[1762803476761,0.0593698,105580.0,105570.0,1.29389751]
[1762803476961,0.0593698,105580.0,105570.0,1.05689985]
[1762803478866,0.0593698,105580.0,105570.0,0.8873185]
[1762803480065,0.0593698,105580.0,105570.0,0.6988799]
[1762803480260,0.0593698,105580.0,105570.0,0.7930992]
[1762803481561,0.3425559,105580.0,105570.0,0.20950259]
[1762803481862,0.4367752,105580.0,105570.0,0.20950259]
[1762803482167,0.1517865,105570.0,105560.0,0.08443281]
[1762803482468,0.1517955,105560.0,105550.0,0.53635135]
[1762803482662,0.05922803,105560.0,105550.0,0.73204782]
[1762803482969,0.05922803,105560.0,105550.0,0.65718586]
[1762803483370,0.05703,105560.0,105550.0,0.65718586]
[1762803483670,0.05922803,105560.0,105550.0,0.65718586]
[1762803483866,0.05922803,105560.0,105550.0,0.75140516]
[1762803484261,0.05703,105570.0,105560.0,0.1067055]
[1762803484455,0.05703,105570.0,105560.0,0.65667677]
[1762803484666,0.05922803,105570.0,105560.0,0.65667677]
[1762803484971,0.05922803,105570.0,105560.0,0.75141411]
[1762803486572,0.05922803,105570.0,105560.0,0.75241411]
[1762803487766,0.05922803,105570.0,105560.0,0.75341411]
[1762803489974,0.05922803,105570.0,105560.0,0.77701411]
[1762803492074,0.05922803,105570.0,105560.0,0.68227677]
[1762803492268,0.24820383,105570.0,105560.0,0.57834026]
[1762803492474,0.24820383,105570.0,105560.0,0.38713267]
[1762803492669,0.24820383,105570.0,105560.0,0.59126882]
[1762803492865,0.15344733,105570.0,105560.0,0.68603422]